bitfinex/quotes_BTCUSD_20240101
["timestamp","ask_amount","ask_price","bid_price","bid_amount"]
[1704068926438,0.198024,42474.0,42473.0,0.30995261]
[1704068926700,0.6759,42474.0,42473.0,0.25475261]
[1704068926909,0.6769,42474.0,42473.0,0.25475261]
[1704068927387,0.6779,42474.0,42473.0,0.0215355]
[1704068927839,0.7341642,42474.0,42473.0,0.0215355]
[1704068928090,0.7261642,42474.0,42473.0,0.019914]
[1704068928302,0.7281642,42474.0,42473.0,0.019914]
[1704068928527,0.8281642,42474.0,42473.0,0.019914]
[1704068928735,0.85630133,42474.0,42473.0,0.019914]
[1704068928938,0.7719,42474.0,42473.0,0.019914]
[1704068929352,0.85630133,42474.0,42473.0,0.019914]
[1704068931798,0.75630133,42474.0,42473.0,0.019914]
[1704068932021,0.72825433,42474.0,42473.0,0.25313111]
[1704068932465,0.75630133,42474.0,42473.0,0.25313111]
[1704068932689,0.75630133,42474.0,42473.0,0.25243611]
[1704068933145,0.6719,42474.0,42473.0,0.25243611]
[1704068933362,0.75630133,42474.0,42473.0,0.25243611]
[1704068935143,1.08858422,42474.0,42473.0,0.019219]
[1704068935823,0.94789421,42474.0,42473.0,0.019219]
[1704068937762,0.47701821,42474.0,42473.0,0.019219]
[1704068937978,0.94789421,42474.0,42473.0,0.019219]
[1704068938215,0.94789421,42474.0,42473.0,0.0185315]
[1704068938658,1.08893251,42474.0,42473.0,0.0185315]
[1704068939288,0.94789421,42474.0,42473.0,0.0185315]
[1704068939993,1.08895942,42474.0,42473.0,0.0185315]
[1704068940448,0.94789421,42474.0,42473.0,0.0185315]
[1704068944377,0.94789421,42474.0,42473.0,0.0179595]
[1704068950470,0.94789421,42474.0,42473.0,0.0173375]
[1704068952402,0.84789421,42474.0,42473.0,0.0173375]
[1704068952857,0.84789421,42474.0,42473.0,0.30545461]
[1704068953104,0.98908071,42474.0,42473.0,0.30545461]
[1704068953313,0.98908071,42474.0,42473.0,0.25055461]
[1704068955469,0.84789421,42474.0,42473.0,0.25055461]
[1704068956131,0.84789421,42474.0,42473.0,0.24988911]
[1704068956345,0.98907368,42474.0,42473.0,0.24988911]
[1704068956557,0.84789421,42474.0,42473.0,0.24988911]
[1704068956771,0.84789421,42474.0,42473.0,0.016672]
[1704068958604,0.9890816,42474.0,42473.0,0.016672]
[1704068958835,0.84789421,42474.0,42473.0,0.016672]
[1704068960088,0.37701821,42474.0,42473.0,0.31822911]
[1704068960575,0.5182413,42474.0,42473.0,0.31822911]
[1704068961677,0.37701821,42474.0,42473.0,0.31822911]
[1704068962372,0.5182413,42474.0,42473.0,0.31822911]
[1704068962603,0.5182413,42474.0,42473.0,0.24758911]
[1704068963046,1.36862265,42474.0,42473.0,0.013707]
[1704068963260,1.7345416,42474.0,42473.0,0.013707]
[1704068963506,1.92455895,42474.0,42473.0,0.013707]
[1704068963738,1.87273482,42474.0,42473.0,0.013707]
[1704068963956,1.68271747,42474.0,42473.0,0.013707]
[1704068964165,2.76588911,42474.0,42473.0,0.013707]
[1704068964380,2.58517666,42474.0,42473.0,0.013707]
[1704068966829,2.78283497,42474.0,42473.0,0.013707]
[1704068967041,2.97354727,42474.0,42473.0,0.013707]
[1704068967469,2.77588896,42474.0,42473.0,0.013707]
[1704068967691,2.58517666,42474.0,42473.0,0.013707]
[1704068968133,2.16359347,42474.0,42473.0,0.013707]
[1704068968345,2.16359347,42474.0,42473.0,0.0130965]
[1704068968984,2.35430577,42474.0,42473.0,0.0130965]
[1704068969399,2.15359347,42474.0,42473.0,0.0130965]
[1704068969613,2.16359347,42474.0,42473.0,0.0130965]
[1704068969819,2.35430577,42474.0,42473.0,0.0130965]
[1704068970262,2.15359347,42474.0,42473.0,0.0130965]
[1704068970463,2.16359347,42474.0,42473.0,0.0130965]
[1704068970885,3.09442523,42474.0,42473.0,0.0130965]
[1704068971116,0.508024,42472.0,42471.0,0.02871]
[1704068971329,1.278922,42472.0,42471.0,0.02871]
[1704068971558,2.16063747,42472.0,42471.0,0.02871]
[1704068972215,2.35128444,42472.0,42471.0,0.02871]
[1704068972450,2.16863747,42472.0,42471.0,0.02971]
[1704068972662,2.70176965,42472.0,42471.0,0.02971]
[1704068973107,2.65364965,42472.0,42471.0,0.02971]
[1704068973573,2.66064965,42472.0,42471.0,0.03071]
[1704068974211,1.71885365,42472.0,42471.0,0.03071]
[1704068974397,2.18975165,42472.0,42471.0,0.030032]
[1704068974597,2.24663373,42472.0,42471.0,0.030032]
[1704068974808,2.42417371,42472.0,42471.0,0.030032]
[1704068975803,2.49209527,42472.0,42471.0,0.030032]
[1704068976668,2.6825941,42472.0,42471.0,0.030032]
[1704068977649,1.66980184,42472.0,42471.0,0.030032]
[1704068977860,2.61159784,42472.0,42471.0,0.030032]
[1704068978305,2.42109901,42472.0,42471.0,0.030032]
[1704068978952,2.35317745,42472.0,42471.0,0.030032]
[1704068979367,2.42109739,42472.0,42471.0,0.030032]
[1704068980194,1.89873415,42472.0,42471.0,0.030032]
[1704068980415,1.43783615,42472.0,42471.0,0.030032]
[1704068980707,1.53783615,42472.0,42471.0,0.0293735]
[1704068980905,1.42783615,42472.0,42471.0,0.0293735]
[1704068981762,1.22783615,42472.0,42471.0,0.0293735]
[1704068981979,0.29763833,42472.0,42471.0,0.0293735]
[1704068982180,0.29763833,42472.0,42471.0,0.0798335]
[1704068982391,0.213024,42472.0,42471.0,0.0798335]
[1704068983039,0.206024,42472.0,42471.0,0.0788335]
[1704068983245,0.205024,42472.0,42471.0,0.078183]
[1704068983447,0.206024,42472.0,42471.0,0.078183]
[1704068983655,0.199024,42472.0,42471.0,0.077183]
[1704068984072,0.199024,42472.0,42471.0,0.078183]
[1704068985232,0.199024,42472.0,42471.0,0.31140011]
[1704068986123,0.199024,42472.0,42471.0,0.33480011]
[1704068986368,0.199024,42472.0,42471.0,0.33418311]
[1704068990903,0.199024,42472.0,42471.0,0.31510311]
[1704068992379,0.199024,42472.0,42471.0,0.40781096]
[1704068992629,0.199024,42472.0,42471.0,0.31452411]
[1704068993818,0.199024,42472.0,42471.0,0.25974411]
[1704068995396,0.199024,42472.0,42471.0,0.31344411]
[1704068998506,0.199024,42472.0,42471.0,0.31281361]
[1704068998746,0.72632793,42472.0,42471.0,0.25911361]
[1704068999261,0.75453633,42472.0,42471.0,0.25911361]
[1704068999465,0.72630339,42472.0,42471.0,0.0258965]
[1704068999683,0.75453633,42472.0,42471.0,0.0258965]
[1704069000132,0.75449595,42472.0,42471.0,0.0258965]
[1704069000343,0.669922,42472.0,42471.0,0.0258965]
[1704069000567,0.93102117,42472.0,42471.0,0.0258965]
[1704069001314,1.59076402,42472.0,42471.0,0.0258965]
[1704069002214,1.69076402,42472.0,42471.0,0.0258965]
[1704069002641,1.86001998,42472.0,42471.0,0.0258965]
[1704069002879,1.69076402,42472.0,42471.0,0.0258965]
[1704069003313,1.85901998,42472.0,42471.0,0.0258965]
[1704069003540,1.68976402,42472.0,42471.0,0.0248965]
[1704069003761,1.70476402,42472.0,42471.0,0.0268965]
[1704069004425,1.70476402,42472.0,42471.0,0.0262745]
[1704069004868,1.69676402,42472.0,42471.0,0.0252745]
[1704069005099,1.61076402,42472.0,42471.0,0.0262745]
[1704069005316,1.70376402,42472.0,42471.0,0.0252745]
[1704069005539,1.90506602,42472.0,42471.0,0.0262745]
[1704069005752,2.07432198,42472.0,42471.0,0.0262745]
[1704069005969,2.59512423,42472.0,42471.0,0.0262745]
[1704069006421,0.508024,42470.0,42469.0,0.02871]
[1704069006633,1.62451079,42470.0,42469.0,0.02871]
[1704069006847,1.45534718,42470.0,42469.0,0.02871]
[1704069007056,1.5232654,42470.0,42469.0,0.02871]
[1704069008353,1.4342654,42470.0,42469.0,0.02971]
[1704069008568,1.5442654,42470.0,42469.0,0.03071]
[1704069009456,1.4442654,42470.0,42469.0,0.03071]
[1704069009896,1.5442654,42470.0,42469.0,0.03071]
[1704069010394,1.5442654,42470.0,42469.0,0.0300105]
[1704069010608,1.4442654,42470.0,42469.0,0.0300105]
[1704069011031,1.3442654,42470.0,42469.0,0.0300105]
[1704069011248,1.4442654,42470.0,42469.0,0.0300105]
[1704069011481,1.3442654,42470.0,42469.0,0.0300105]
[1704069011920,1.27634718,42470.0,42469.0,0.0300105]
[1704069012150,1.48521167,42470.0,42469.0,0.0300105]
[1704069012591,1.54425935,42470.0,42469.0,0.0300105]
[1704069014309,1.73609107,42470.0,42469.0,0.0300105]
[1704069014522,1.78457107,42470.0,42469.0,0.0300105]
[1704069014738,1.71342296,42470.0,42469.0,0.0300105]
[1704069014950,1.75416296,42470.0,42469.0,0.0300105]
[1704069015190,1.68625079,42470.0,42469.0,0.0300105]
[1704069015409,1.64551079,42470.0,42469.0,0.0300105]
[1704069016262,1.77213101,42470.0,42469.0,0.0300105]
[1704069016524,1.72427181,42470.0,42469.0,0.0300105]
[1704069017187,1.5551082,42470.0,42469.0,0.0300105]
[1704069017620,1.5986682,42470.0,42469.0,0.0300105]
[1704069018283,1.47634718,42470.0,42469.0,0.0300105]
[1704069019793,1.51696718,42470.0,42469.0,0.0300105]
[1704069020007,1.47634718,42470.0,42469.0,0.0300105]
[1704069020428,1.51702718,42470.0,42469.0,0.0300105]
[1704069020893,1.04610718,42470.0,42469.0,0.0300105]
[1704069021121,1.51702718,42470.0,42469.0,0.0300105]
[1704069021365,1.47634718,42470.0,42469.0,0.0300105]
[1704069022030,1.54426711,42470.0,42469.0,0.0300105]
[1704069023518,2.01518711,42470.0,42469.0,0.0300105]
[1704069024373,1.54426711,42470.0,42469.0,0.0300105]
[1704069025015,2.23535072,42470.0,42469.0,0.0300105]
[1704069025229,2.2925296,42470.0,42469.0,0.0300105]
[1704069025469,1.3506896,42470.0,42469.0,0.0300105]
[1704069025683,1.8216096,42470.0,42469.0,0.0300105]
[1704069025899,2.06296602,42470.0,42469.0,0.0300105]
[1704069026340,2.06296602,42470.0,42465.0,0.02871]
[1704069026341,0.508024,42466.0,42465.0,0.02871]
[1704069026556,0.508024,42465.0,42464.0,0.02871]
[1704069026809,1.86053953,42465.0,42464.0,0.02871]
[1704069027021,2.50791871,42465.0,42464.0,0.02871]
[1704069027447,0.508024,42462.0,42453.0,0.2337]
[1704069027656,1.96930962,42462.0,42453.0,0.2337]
[1704069027890,2.49545862,42462.0,42453.0,0.2337]
[1704069028105,2.9262209,42462.0,42453.0,0.2337]
[1704069028343,0.508024,42459.0,42453.0,0.2337]
[1704069028564,1.98416887,42459.0,42453.0,0.2337]
[1704069029703,2.1476583,42459.0,42453.0,0.2337]
[1704069029954,2.1346583,42459.0,42453.0,0.2437]
[1704069030396,2.27547863,42459.0,42453.0,0.2437]
[1704069030607,2.19847863,42459.0,42458.0,0.03082]
[1704069030853,2.1349892,42459.0,42458.0,0.03082]
[1704069031290,2.0349892,42459.0,42458.0,0.03082]
[1704069031495,1.80681071,42459.0,42458.0,0.03082]
[1704069031927,2.00681071,42459.0,42458.0,0.03082]
[1704069032158,1.80681071,42459.0,42458.0,0.03082]
[1704069032624,2.10681071,42459.0,42458.0,0.03082]
[1704069033739,1.33576871,42459.0,42458.0,0.03082]
[1704069034189,1.46348684,42459.0,42458.0,0.03082]
[1704069034409,1.11329674,42459.0,42458.0,0.03082]
[1704069034659,1.05698593,42459.0,42458.0,0.03082]
[1704069034870,0.989066,42459.0,42458.0,0.03082]
[1704069035557,0.989066,42459.0,42458.0,0.08734]
[1704069035558,0.678066,42459.0,42458.0,0.08734]
[1704069036213,0.207024,42459.0,42458.0,0.08734]
[1704069036451,0.218024,42459.0,42458.0,0.08834]
[1704069036663,0.206024,42459.0,42458.0,0.08734]
[1704069036891,0.202024,42459.0,42458.0,0.08734]
[1704069037345,0.198024,42459.0,42458.0,0.08634]
[1704069037563,0.198024,42459.0,42458.0,0.45695711]
[1704069037564,0.007,42459.0,42458.0,0.45695711]
[1704069037793,0.003,42459.0,42458.0,0.45695711]
[1704069038221,0.007,42459.0,42458.0,0.45695711]
[1704069038461,0.098024,42460.0,42458.0,0.55024396]
[1704069038680,0.195024,42464.0,42463.0,0.01]
[1704069038905,0.195024,42464.0,42463.0,0.33650396]
[1704069039117,0.3,42466.0,42463.0,0.33650396]
[1704069039333,0.195024,42465.0,42464.0,0.09328685]
[1704069039550,0.3,42465.0,42464.0,0.14596685]
[1704069039790,0.495024,42465.0,42464.0,0.05268]
[1704069040006,0.195024,42464.0,42463.0,0.24321711]
[1704069041122,0.96759495,42464.0,42463.0,0.01]
[1704069041346,0.87156208,42464.0,42463.0,0.01]
[1704069041564,0.81520862,42464.0,42463.0,0.01]
[1704069041780,0.8831296,42464.0,42463.0,0.01]
[1704069041993,0.96759582,42464.0,42463.0,0.013]
[1704069042389,0.8831296,42464.0,42463.0,0.01]
[1704069042646,1.11666951,42464.0,42463.0,0.01]
[1704069042855,1.12274523,42464.0,42463.0,0.011]
[1704069043065,1.12274523,42464.0,42463.0,0.013]
[1704069043275,1.01010339,42464.0,42463.0,0.011]
[1704069043704,1.15792372,42464.0,42463.0,0.002]
[1704069043914,1.11710339,42464.0,42463.0,0.002]
[1704069044126,1.25809085,42464.0,42463.0,0.002]
[1704069044342,1.11710339,42464.0,42463.0,0.002]
[1704069045649,1.51710339,42464.0,42463.0,0.002]
[1704069045860,1.68615588,42464.0,42463.0,0.002]
[1704069046544,1.51710339,42464.0,42463.0,0.002]
[1704069046754,1.68615588,42464.0,42463.0,0.002]
[1704069047171,1.74068169,42464.0,42463.0,0.002]
[1704069048338,0.1,42459.0,42458.0,0.02882]
[1704069048551,0.966066,42459.0,42458.0,0.02882]
[1704069048765,1.20415839,42459.0,42458.0,0.02882]
[1704069048983,1.50415839,42459.0,42458.0,0.02882]
[1704069049527,1.50715839,42459.0,42458.0,0.02882]
[1704069049731,1.67644222,42459.0,42458.0,0.02882]
[1704069049907,1.68644222,42459.0,42458.0,0.02982]
[1704069050334,1.7391533,42459.0,42458.0,0.02982]
[1704069050746,1.89523029,42459.0,42458.0,0.02982]
[1704069050950,1.90423029,42459.0,42458.0,0.03082]
[1704069051577,1.85213014,42459.0,42458.0,0.03082]
[1704069051991,2.07388396,42459.0,42458.0,0.03082]
[1704069052199,1.90461806,42459.0,42458.0,0.03082]
[1704069052612,2.37566006,42459.0,42458.0,0.03082]
[1704069053029,2.61701648,42459.0,42458.0,0.03082]
[1704069053449,2.37566006,42459.0,42458.0,0.03082]
[1704069055433,2.42096006,42459.0,42458.0,0.03082]
[1704069055880,2.37566006,42459.0,42458.0,0.03082]
[1704069056109,2.42114006,42459.0,42458.0,0.03082]
[1704069056589,2.37566006,42459.0,42458.0,0.03082]
[1704069057250,2.69707477,42459.0,42458.0,0.03082]
[1704069057479,3.38711736,42459.0,42458.0,0.03082]
[1704069057722,3.38711736,42459.0,42446.0,0.02882]
[1704069057723,0.195024,42447.0,42446.0,0.02882]
[1704069057928,0.75080275,42447.0,42446.0,0.03882]
[1704069059031,0.75380275,42447.0,42446.0,0.03882]
[1704069059471,0.666199,42447.0,42446.0,0.03882]
[1704069059691,0.73814911,42447.0,42446.0,0.02982]
[1704069060131,1.09900015,42447.0,42446.0,0.02982]
[1704069060334,1.2400064,42447.0,42446.0,0.02982]
[1704069060547,1.51178579,42447.0,42446.0,0.02982]
[1704069060775,1.5430064,42447.0,42446.0,0.02982]
[1704069061221,1.50200015,42447.0,42446.0,0.02982]
[1704069062691,2.13067169,42447.0,42446.0,0.02982]
[1704069062890,1.73521726,42447.0,42446.0,0.02982]
[1704069063583,1.49900015,42447.0,42446.0,0.02982]
[1704069064245,1.61670947,42447.0,42446.0,0.02982]
[1704069064464,1.35971749,42447.0,42446.0,0.02982]
[1704069064662,1.36071749,42447.0,42446.0,0.02982]
[1704069064879,1.36971749,42447.0,42446.0,0.03082]
[1704069066146,1.35133914,42447.0,42446.0,0.03082]
[1704069066582,1.622784,42447.0,42446.0,0.03082]
[1704069066795,1.622784,42447.0,42446.0,0.02462]
[1704069067006,1.6227469,42447.0,42446.0,0.02462]
[1704069067419,1.65096993,42447.0,42446.0,0.02462]
[1704069067876,1.62273461,42447.0,42446.0,0.02462]
[1704069068095,1.36788271,42447.0,42446.0,0.02462]
[1704069068522,1.62366399,42447.0,42446.0,0.02462]
[1704069068735,1.65189931,42447.0,42446.0,0.02462]
[1704069069214,1.88511642,42447.0,42446.0,0.02462]
[1704069070298,1.78862117,42447.0,42446.0,0.02462]
[1704069072041,1.78862117,42447.0,42442.0,0.02882]
[1704069072042,0.495024,42443.0,42442.0,0.02882]
[1704069072263,0.495024,42442.0,42441.0,0.008]
[1704069072481,0.495024,42442.0,42431.0,0.2283]
[1704069072482,0.495024,42437.0,42431.0,0.2283]
[1704069072704,1.65194506,42437.0,42431.0,0.2283]
[1704069072956,1.56747833,42437.0,42431.0,0.2283]
[1704069073382,1.65191849,42437.0,42431.0,0.2283]
[1704069073603,1.65191849,42437.0,42436.0,0.0119276]
[1704069073821,1.62376687,42437.0,42436.0,0.0119276]
[1704069074031,1.63376687,42437.0,42436.0,0.0119276]
[1704069074266,1.30054976,42437.0,42436.0,0.0119276]
[1704069074518,1.11154976,42437.0,42436.0,0.0119276]
[1704069074743,1.25526122,42437.0,42436.0,0.0119276]
[1704069074959,1.05526122,42437.0,42436.0,0.0119276]
[1704069075172,1.25526122,42437.0,42436.0,0.0119276]
[1704069075376,1.2628556,42437.0,42436.0,0.0119276]
[1704069075586,1.18731,42437.0,42436.0,0.0119276]
[1704069077533,1.27670749,42437.0,42436.0,0.0119276]
[1704069077749,0.98731,42437.0,42436.0,0.0119276]
[1704069078549,0.216024,42437.0,42436.0,0.0792876]
[1704069079016,0.216024,42437.0,42436.0,0.0219276]
[1704069079805,0.195024,42437.0,42436.0,0.0219276]
[1704069080016,0.200024,42437.0,42436.0,0.0219276]
[1704069080243,0.199024,42437.0,42436.0,0.0219276]
[1704069080457,0.202024,42437.0,42436.0,0.0219276]
[1704069080702,0.198024,42437.0,42436.0,0.0219276]
[1704069080904,0.200024,42437.0,42436.0,0.0219276]
[1704069082194,0.200024,42437.0,42436.0,0.0119276]
[1704069082636,0.29859063,42437.0,42436.0,0.0119276]
[1704069083691,0.76987663,42437.0,42436.0,0.0119276]
[1704069085378,1.12616517,42437.0,42436.0,0.0119276]
[1704069085586,1.42616517,42437.0,42436.0,0.0119276]
[1704069085798,1.36987663,42437.0,42436.0,0.0119276]
[1704069086511,1.42611412,42437.0,42436.0,0.0119276]
[1704069088020,1.45423402,42437.0,42436.0,0.0119276]
[1704069088264,0.98294802,42437.0,42436.0,0.0119276]
[1704069088692,1.42614026,42437.0,42436.0,0.0119276]
[1704069088911,1.36987663,42437.0,42436.0,0.0119276]
[1704069091443,1.42618002,42437.0,42436.0,0.0119276]
[1704069091666,0.9837626,42437.0,42436.0,0.0119276]
[1704069091922,1.4550486,42437.0,42436.0,0.0119276]
[1704069092125,1.39874562,42437.0,42436.0,0.0119276]
[1704069092334,1.4550486,42437.0,42436.0,0.0119276]
[1704069092550,1.39874562,42437.0,42436.0,0.0119276]
[1704069092753,1.45506141,42437.0,42436.0,0.0119276]
[1704069092965,1.48314107,42437.0,42436.0,0.0119276]
[1704069093233,1.45506186,42437.0,42436.0,0.0119276]
[1704069093444,1.39874562,42437.0,42436.0,0.0119276]
[1704069093923,1.48314107,42437.0,42436.0,0.0119276]
[1704069094346,1.51122061,42437.0,42436.0,0.0119276]
[1704069094552,1.66956842,42437.0,42436.0,0.0119276]
[1704069094977,1.48325542,42437.0,42436.0,0.0119276]
[1704069095433,1.51122061,42437.0,42436.0,0.0119276]
[1704069095653,1.6696596,42437.0,42436.0,0.0119276]
[1704069096277,1.48327244,42437.0,42436.0,0.0119276]
[1704069096489,1.66997946,42437.0,42436.0,0.0119276]
[1704069096694,1.39874562,42437.0,42436.0,0.0119276]
[1704069097325,1.67004765,42437.0,42436.0,0.0119276]
[1704069097764,1.55757266,42437.0,42436.0,0.0119276]
[1704069097983,1.67031489,42437.0,42436.0,0.0119276]
[1704069098396,1.6981664,42437.0,42436.0,0.0119276]
[1704069098604,1.67033718,42437.0,42436.0,0.0119276]
[1704069099050,1.55757266,42437.0,42436.0,0.0119276]
[1704069099264,1.67033554,42437.0,42436.0,0.0119276]
[1704069099558,1.6981664,42437.0,42436.0,0.0119276]
[1704069099775,1.69855727,42437.0,42436.0,0.0119276]
[1704069100000,1.55757266,42437.0,42436.0,0.0119276]
[1704069104787,1.72628515,42437.0,42436.0,0.0119276]
[1704069105412,1.773883,42437.0,42436.0,0.0119276]
[1704069107523,1.94346684,42437.0,42436.0,0.0119276]
[1704069107935,1.72700594,42437.0,42436.0,0.0119276]
[1704069108142,1.94353645,42437.0,42436.0,0.0119276]
[1704069108371,1.77410317,42437.0,42436.0,0.0119276]
[1704069108566,1.9435461,42437.0,42436.0,0.0119276]
[1704069108983,1.77410317,42437.0,42436.0,0.0119276]
[1704069111228,2.24538917,42437.0,42436.0,0.0119276]
[1704069112323,3.19959461,42437.0,42436.0,0.0119276]
[1704069113429,3.00979306,42437.0,42436.0,0.0119276]
[1704069113658,2.96497306,42437.0,42436.0,0.0119276]
[1704069115207,3.01207306,42437.0,42436.0,0.0119276]
[1704069115653,2.96497306,42437.0,42436.0,0.0119276]
[1704069117189,1.93160096,42437.0,42436.0,0.0119276]
[1704069117410,1.44523418,42437.0,42436.0,0.2420276]
[1704069117850,1.22870367,42437.0,42436.0,0.2420276]
[1704069118764,1.22870367,42437.0,42436.0,0.2520276]
[1704069118988,1.37005821,42437.0,42436.0,0.2520276]
[1704069119639,1.34176863,42437.0,42436.0,0.2520276]
[1704069119865,1.22870367,42437.0,42436.0,0.2520276]
[1704069120086,1.37005821,42437.0,42436.0,0.2520276]
[1704069120962,1.37003806,42437.0,42436.0,0.2520276]
[1704069122121,0.200024,42437.0,42436.0,0.54794471]
[1704069122423,0.2848092,42437.0,42436.0,0.54794471]
[1704069122645,0.005,42437.0,42436.0,0.54794471]
[1704069122855,0.197024,42437.0,42436.0,0.54794471]
[1704069123073,0.195024,42437.0,42436.0,0.54794471]
[1704069123289,0.002,42437.0,42436.0,0.68811471]
[1704069123510,0.1817852,42440.0,42438.0,0.01]
[1704069123511,0.05652193,42439.0,42438.0,0.01]
[1704069123750,0.05652193,42439.0,42438.0,0.24321711]
[1704069123976,0.05652193,42439.0,42438.0,0.33897711]
[1704069124185,0.25154593,42440.0,42439.0,0.01]
[1704069124423,0.15352193,42441.0,42439.0,0.24321711]
[1704069124642,0.05652193,42441.0,42440.0,0.24321711]
[1704069124860,0.05652193,42441.0,42440.0,0.32415711]
[1704069125300,0.195024,42441.0,42440.0,0.32415711]
[1704069126643,0.196024,42441.0,42440.0,0.32515711]
[1704069126855,0.001,42441.0,42440.0,0.32515711]
[1704069127079,0.002,42441.0,42440.0,0.32615711]
[1704069127741,0.002,42441.0,42440.0,0.47789711]
[1704069127982,0.002,42441.0,42440.0,1.07995611]
[1704069128215,0.002,42441.0,42440.0,1.22873611]
[1704069128466,0.002,42441.0,42440.0,1.11239611]
[1704069128716,0.002,42441.0,42440.0,0.78688311]
[1704069128955,0.001,42441.0,42440.0,1.11139611]
[1704069129185,0.195024,42450.0,42442.0,0.104806]
[1704069129424,0.195024,42450.0,42443.0,0.23604711]
[1704069129663,0.097,42447.0,42446.0,0.01]
[1704069129902,0.195024,42447.0,42446.0,0.24321711]
[1704069131093,0.13325028,42451.0,42443.0,0.23093]
[1704069131094,0.195024,42444.0,42443.0,0.27694]
[1704069131306,0.195024,42444.0,42443.0,0.47131711]
[1704069131532,0.195024,42444.0,42443.0,0.46131711]
[1704069131747,0.195024,42444.0,42443.0,0.47131711]
[1704069131960,0.195024,42444.0,42443.0,0.46731711]
[1704069132830,0.196024,42444.0,42443.0,0.47131711]
[1704069133527,0.196024,42444.0,42443.0,0.47631711]
[1704069133528,0.197024,42444.0,42443.0,0.47631711]
[1704069133736,0.197024,42444.0,42443.0,0.52875711]
[1704069137115,0.002,42444.0,42443.0,0.52875711]
[1704069137320,0.002,42444.0,42443.0,0.56421711]
[1704069142509,0.002,42444.0,42443.0,0.54135711]
[1704069145561,0.197024,42444.0,42443.0,0.47631711]
[1704069146865,0.002,42444.0,42443.0,0.47631711]
[1704069147075,0.002,42444.0,42443.0,0.54771711]
[1704069150244,0.197024,42444.0,42443.0,0.54771711]
[1704069150885,0.197024,42444.0,42443.0,0.47631711]
[1704069152369,0.197024,42444.0,42443.0,0.47131711]
[1704069153377,0.197024,42444.0,42443.0,0.25221711]
[1704069153588,0.197024,42444.0,42443.0,0.29967711]
[1704069153935,0.197024,42444.0,42443.0,0.25221711]
[1704069155391,0.197024,42444.0,42443.0,0.32139711]
[1704069155822,0.197024,42444.0,42443.0,0.25221711]
[1704069157558,0.197024,42444.0,42443.0,0.24221711]
[1704069157766,0.197024,42444.0,42443.0,0.25221711]
[1704069158405,0.2533754,42444.0,42443.0,0.25221711]
[1704069158631,0.668233,42444.0,42443.0,0.25221711]
[1704069158834,0.73617573,42444.0,42443.0,0.25221711]
[1704069159266,0.79252713,42444.0,42443.0,0.25221711]
[1704069160315,0.82070284,42444.0,42443.0,0.25221711]
[1704069161428,1.01174838,42444.0,42443.0,0.009]
[1704069161640,0.89904557,42444.0,42443.0,0.009]
[1704069161859,1.19904557,42444.0,42443.0,0.009]
[1704069162116,0.89904557,42444.0,42443.0,0.009]
[1704069163087,1.19904557,42444.0,42443.0,0.009]
[1704069163325,0.195024,42442.0,42441.0,0.01]
[1704069163559,0.9703515,42442.0,42441.0,0.01]
[1704069163800,0.195024,42437.0,42436.0,0.0219276]
[1704069164035,0.25151574,42437.0,42436.0,0.0219276]
[1704069164288,0.195024,42437.0,42436.0,0.0692076]
[1704069164498,0.27976162,42437.0,42436.0,0.0692076]
[1704069164707,0.25152843,42437.0,42436.0,0.0219276]
[1704069164920,0.195024,42437.0,42436.0,0.0683676]
[1704069165127,0.195024,42437.0,42436.0,0.0219276]
[1704069165332,0.25152763,42437.0,42436.0,0.0672276]
[1704069165545,0.195024,42437.0,42436.0,0.0219276]
[1704069165752,0.27976162,42437.0,42436.0,0.0219276]
[1704069166179,0.27976162,42437.0,42436.0,0.0119276]
[1704069166404,0.27976162,42437.0,42436.0,0.0139276]
[1704069166643,0.27976162,42437.0,42436.0,0.0239276]
[1704069166644,0.4699689,42437.0,42436.0,0.0239276]
[1704069166892,0.195024,42437.0,42436.0,0.0239276]
[1704069167110,0.27978234,42437.0,42436.0,0.0239276]
[1704069167318,0.27978234,42437.0,42436.0,0.0742676]
[1704069167531,0.195024,42437.0,42436.0,0.0742676]
[1704069167802,0.27978234,42437.0,42436.0,0.0239276]
[1704069168248,0.28178234,42437.0,42436.0,0.0239276]
[1704069168455,0.28178234,42437.0,42436.0,0.0219276]
[1704069168671,0.28177579,42437.0,42436.0,0.0219276]
[1704069169316,0.35910076,42437.0,42436.0,0.0219276]
[1704069169533,0.59398734,42437.0,42436.0,0.0219276]
[1704069169745,1.06527334,42437.0,42436.0,0.0119276]
[1704069170000,2.20503356,42437.0,42436.0,0.0119276]
[1704069170229,1.88205229,42437.0,42436.0,0.0119276]
[1704069170492,1.83472602,42437.0,42436.0,0.0119276]
[1704069170726,1.36344002,42437.0,42436.0,0.0119276]
[1704069170965,1.88150325,42437.0,42436.0,0.0119276]
[1704069171217,1.83466403,42437.0,42436.0,0.0119276]
[1704069172323,1.66527334,42437.0,42436.0,0.0119276]
[1704069172756,1.67727334,42437.0,42436.0,0.0129276]
[1704069172977,1.66327334,42437.0,42436.0,0.0119276]
[1704069173199,1.67427334,42437.0,42436.0,0.0129276]
[1704069173414,1.68627334,42437.0,42436.0,0.0139276]
[1704069174319,2.39077645,42437.0,42436.0,0.0139276]
[1704069174627,2.43379645,42437.0,42436.0,0.0139276]
[1704069175782,2.26687043,42437.0,42436.0,0.0139276]
[1704069176059,2.4401744,42437.0,42436.0,0.0139276]
[1704069176534,2.67300271,42437.0,42436.0,0.00147834]
[1704069177236,3.13149588,42437.0,42436.0,0.00147834]
[1704069178206,3.16027632,42437.0,42436.0,0.00147834]
[1704069178416,2.70178315,42437.0,42436.0,0.00147834]
[1704069178652,0.495024,42431.0,42430.0,0.02898]
[1704069178867,1.72963143,42431.0,42430.0,0.02898]
[1704069179975,1.73263143,42431.0,42430.0,0.02898]
[1704069180188,0.495024,42429.0,42428.0,0.00769]
[1704069180387,1.60912367,42429.0,42428.0,0.00769]
[1704069180616,1.75828558,42429.0,42428.0,0.00769]
[1704069180835,1.78645742,42429.0,42428.0,0.00769]
[1704069181044,1.64559823,42429.0,42428.0,0.00769]
[1704069181247,1.75828283,42429.0,42428.0,0.00769]
[1704069181474,1.59620607,42429.0,42428.0,0.00769]
[1704069181713,1.75174135,42429.0,42428.0,0.00969]
[1704069181933,1.56803247,42429.0,42428.0,0.00969]
[1704069182459,1.78046147,42429.0,42428.0,0.00969]
[1704069182903,1.75193805,42429.0,42428.0,0.00969]
[1704069183109,1.63928477,42429.0,42428.0,0.00969]
[1704069183492,1.78005839,42429.0,42428.0,0.00969]
[1704069183736,1.78005839,42429.0,42428.0,0.00769]